fUSD/lending_fUSD_20240905
["ID","MTS","AMOUNT","RATE_DAILY","PERIOD"]
[337258862,1725553690390,-504.39893533,0.00014994,2]
[337258863,1725553690418,-500.0,0.00014994,2]
[337258864,1725553690442,-500.0,0.00014994,2]
[337258865,1725553690465,-500.0,0.00014994,2]
[337258866,1725553690488,-500.0,0.00014994,2]
[337258867,1725553690511,-1697.44,0.00014994,2]
[337258868,1725553690534,-500.0,0.00014994,2]
[337258869,1725553690557,-500.0,0.00014994,2]
[337258870,1725553690581,-500.0,0.00014994,2]
[337258871,1725553690611,-502.71447653,0.00014994,2]
[337258872,1725553690634,-500.0,0.00014994,2]
[337258873,1725553690657,-522.82,0.00014994,2]
[337258874,1725553690680,-500.0,0.00014994,2]
[337258875,1725553690706,-500.0,0.00014994,2]
[337258876,1725553690732,-500.0,0.00014994,2]
[337258877,1725553690802,-500.0,0.00014994,2]
[337258878,1725553690824,-608.42,0.00014994,2]
[337258879,1725553690846,-500.0,0.00014994,2]
[337258880,1725553690871,-1710.59,0.00014994,2]
[337258881,1725553690895,-500.0,0.00014994,2]
[337258882,1725553690921,-545.54458241,0.00014994,2]
[337258883,1725553690944,-559.36,0.00014994,2]
[337258884,1725553690967,-500.0,0.00014994,2]
[337258885,1725553690989,-305.44395467,0.00014994,2]
[337258886,1725553691010,-500.0,0.00014994,2]
[337258887,1725553691033,-542.1,0.00014994,2]
[337258888,1725553691054,-150.0,0.00014994,2]
[337258889,1725553691078,-2484.57,0.00014994,2]
[337258890,1725553691102,-500.0,0.00014994,2]
[337258891,1725553691127,-500.0,0.00014994,2]
[337258892,1725553691150,-500.0,0.00014994,2]
[337258893,1725553691171,-3623.59,0.00014994,2]
[337258894,1725553691195,-664.55,0.00014994,2]
[337258895,1725553691217,-4481.32,0.00014994,2]
[337258896,1725553691239,-500.0,0.00014994,2]
[337258897,1725553691262,-500.0,0.00014994,2]
[337258898,1725553691284,-4173.78,0.00014994,2]
[337258899,1725553691306,-500.0,0.00014994,2]
[337258900,1725553691328,-511.16264901,0.00014994,2]
[337258901,1725553691350,-500.0,0.00014994,2]
[337258902,1725553691378,-1326.98,0.00014994,2]
[337258903,1725553691402,-5955.53,0.00014994,2]
[337258904,1725553691424,-500.0,0.00014994,2]
[337258905,1725553691449,-1654.89,0.00014994,2]
[337258906,1725553691472,-500.0,0.00014994,2]
[337258907,1725553691495,-1235.74,0.00014994,2]
[337258908,1725553691518,-500.0,0.00014994,2]
[337258909,1725553691541,-2020.97,0.00014994,2]
[337258910,1725553691565,-500.0,0.00014994,2]
[337258911,1725553691589,-976.13,0.00014994,2]
[337258912,1725553691615,-500.0,0.00014994,2]
[337258913,1725553691640,-1491.48,0.00014994,2]
[337258914,1725553691663,-1491.48,0.00014994,2]
[337258915,1725553691685,-500.0,0.00014994,2]
[337258916,1725553691708,-909.88,0.00014994,2]
[337258917,1725553691730,-909.88,0.00014994,2]
[337258918,1725553691753,-500.0,0.00014994,2]
[337258919,1725553691778,-500.0,0.00014994,2]
[337258920,1725553691801,-500.0,0.00014994,2]
[337258921,1725553691825,-500.0,0.00014994,2]
[337258922,1725553691848,-811.19,0.00014994,2]
[337258923,1725553691872,-811.19,0.00014994,2]
[337258924,1725553691893,-5309.17,0.00014994,2]
[337258925,1725553691916,-1421.42,0.00014994,2]
[337258926,1725553691938,-970.97,0.00014994,2]
[337258927,1725553691961,-970.97,0.00014994,2]
[337258928,1725553691984,-500.0,0.00014994,2]
[337258929,1725553692007,-500.0,0.00014994,2]
[337258930,1725553692029,-490.57569913,0.00014994,2]
[337258931,1725553692052,-500.0,0.00014994,2]
[337258932,1725553692075,-500.0,0.00014994,2]
[337258933,1725553692098,-500.0,0.00014994,2]
[337258934,1725553692124,-857.95389653,0.00014994,2]
[337258935,1725553692413,3635.90638334,0.0001,2]
[337258936,1725553709662,585.7077,0.00013915,2]
[337258940,1725553721206,4508.54349595,0.00013935,2]
[337258941,1725553721229,19391.45650405,0.00013935,2]
[337258944,1725553737210,250.0,0.00013933,2]
[337258945,1725553744344,5358.54349595,0.00013986,2]
[337258946,1725553744366,9392.12020405,0.00013986,2]
[337258949,1725553778419,2779.35,0.00013947,2]
[337258965,1725553832197,-768.83,0.00014028,2]
[337258967,1725553832207,-8845.56,0.00014066,2]
[337258968,1725553832217,-164.75,0.0001408,2]
[337258969,1725553832227,-3489.11,0.00014178,2]
[337258970,1725553832237,-286.269359,0.00014795,2]
[337258971,1725553832247,-378.93388777,0.00014983,3]
[337258972,1725553832256,-300.0,0.00014983,2]
[337258973,1725553832266,-3410.40498993,0.00014984,3]
[337258974,1725553832276,-150.0,0.00014989,2]
[337258975,1725553832285,-758.24,0.0001499,2]
[337258976,1725553832295,-1242.9,0.0001499,2]
[337258977,1725553832304,-894.79,0.0001499,2]
[337258978,1725553832315,-500.0,0.0001499,2]
[337258979,1725553832324,-809.14,0.0001499,2]
[337258980,1725553832333,-675.99,0.0001499,2]
[337258981,1725553832343,-500.0,0.0001499,2]
[337258982,1725553832352,-500.0,0.0001499,2]
[337258983,1725553832361,-1302.97,0.0001499,2]
[337258984,1725553832370,-762.3,0.0001499,2]
[337258985,1725553832380,-3028.98,0.0001499,2]
[337258986,1725553832390,-1212.57,0.0001499,2]
[337258987,1725553832399,-616.46,0.0001499,2]
[337258988,1725553832409,-555.8,0.0001499,2]
[337258989,1725553832419,-5934.26,0.0001499,2]
[337258990,1725553832430,-3208.0,0.0001499,2]
[337258991,1725553832440,-2326.79,0.0001499,2]
[337258992,1725553832449,-946.39,0.0001499,2]
[337258993,1725553832459,-1555.28,0.0001499,2]
[337258994,1725553832468,-500.0,0.0001499,2]
[337258995,1725553832477,-1363.45,0.0001499,2]
[337258996,1725553832486,-3105.09,0.0001499,2]
[337258998,1725553832496,-661.36,0.0001499,2]
[337259000,1725553832506,-11695.67,0.0001499,2]
[337259001,1725553832515,-500.0,0.0001499,2]
[337259003,1725553832524,-2087.83,0.0001499,2]
[337259005,1725553832535,-500.0,0.0001499,2]
[337259007,1725553832544,-990.84,0.0001499,2]
[337259009,1725553832554,-5887.95,0.0001499,2]
[337259011,1725553832563,-500.0,0.0001499,2]
[337259013,1725553832573,-3101.94,0.0001499,2]
[337259015,1725553832582,-2813.01,0.0001499,2]
[337259017,1725553832591,-2719.95,0.0001499,2]
[337259019,1725553832600,-500.0,0.0001499,2]
[337259021,1725553832610,-13510.44,0.0001499,2]
[337259023,1725553832619,-500.0,0.00014991,2]
[337259025,1725553832629,-500.0,0.00014991,2]
[337259027,1725553832638,-500.0,0.00014991,2]
[337259028,1725553832647,-500.0,0.00014991,2]
[337259029,1725553832657,-996.15,0.00014991,2]
[337259030,1725553832666,-1012.74,0.00014991,2]
[337259031,1725553832676,-500.0,0.00014991,2]
[337259032,1725553832685,-500.0,0.00014991,2]
[337259033,1725553832695,-500.0,0.00014991,2]
[337259034,1725553832705,-593.91,0.00014991,2]
[337259035,1725553832714,-570.54,0.00014991,2]
[337259036,1725553832724,-157.64766985,0.00014991,2]
[337259037,1725553832733,-500.0,0.00014991,2]
[337259038,1725553832742,-500.0,0.00014991,2]
[337259039,1725553832752,-500.0,0.00014991,2]
[337259040,1725553832762,-506.5380704,0.00014991,2]
[337259041,1725553832771,-500.0,0.00014991,2]
[337259042,1725553832780,-500.0,0.00014991,2]
[337259043,1725553832789,-501.74239139,0.00014991,2]
[337259044,1725553832799,-500.0,0.00014991,2]
[337259045,1725553832809,-501.2635571,0.00014991,2]
[337259046,1725553832819,-500.0,0.00014991,2]
[337259047,1725553832829,-714.49,0.00014991,2]
[337259048,1725553832839,-500.0,0.00014991,2]
[337259049,1725553832848,-506.46357603,0.00014991,2]
[337259050,1725553832858,-511.50493722,0.00014991,2]
[337259051,1725553832867,-500.0,0.00014991,2]
[337259052,1725553832876,-339.31,0.00014991,2]
[337259053,1725553832886,-500.0,0.00014991,2]
[337259054,1725553832895,-500.0,0.00014991,2]
[337259055,1725553832905,-2659.26,0.00014991,2]
[337259056,1725553832915,-758.24,0.00014992,2]
[337259057,1725553832925,-1242.9,0.00014992,2]
[337259058,1725553832934,-500.0,0.00014992,2]
[337259059,1725553832943,-894.79,0.00014992,2]
[337259060,1725553832952,-675.99,0.00014992,2]
[337259061,1725553832961,-809.14,0.00014992,2]
[337259062,1725553832970,-500.0,0.00014992,2]
[337259063,1725553832979,-500.0,0.00014992,2]
[337259064,1725553832988,-1302.97,0.00014992,2]
[337259065,1725553832997,-762.3,0.00014992,2]
[337259066,1725553833006,-3028.98,0.00014992,2]
[337259067,1725553833016,-1212.57,0.00014992,2]
[337259068,1725553833025,-616.46,0.00014992,2]
[337259069,1725553833034,-555.8,0.00014992,2]
[337259070,1725553833044,-5934.26,0.00014992,2]
[337259071,1725553833054,-3208.0,0.00014992,2]
[337259072,1725553833063,-2326.79,0.00014992,2]
[337259073,1725553833073,-946.39,0.00014992,2]
[337259074,1725553833083,-1555.28,0.00014992,2]
[337259075,1725553833093,-500.0,0.00014992,2]
[337259076,1725553833103,-1363.45,0.00014992,2]
[337259077,1725553833114,-3105.09,0.00014992,2]
[337259078,1725553833124,-661.36,0.00014992,2]
[337259079,1725553833135,-11695.67,0.00014992,2]
[337259080,1725553833145,-500.0,0.00014992,2]
[337259081,1725553833156,-2087.83,0.00014992,2]
[337259082,1725553833166,-500.0,0.00014992,2]
[337259083,1725553833176,-990.84,0.00014992,2]
[337259084,1725553833185,-5887.95,0.00014992,2]
[337259085,1725553833195,-500.0,0.00014992,2]
[337259086,1725553833205,-3101.94,0.00014992,2]
[337259087,1725553833214,-2813.01,0.00014992,2]
[337259088,1725553833223,-2719.95,0.00014992,2]
[337259089,1725553833233,-500.0,0.00014992,2]
[337259090,1725553833242,-13510.44,0.00014992,2]
[337259091,1725553833252,-500.0,0.00014993,2]
[337259092,1725553833261,-500.0,0.00014993,2]
[337259093,1725553833270,-500.0,0.00014993,2]
[337259094,1725553833280,-500.0,0.00014993,2]
[337259095,1725553833289,-500.0,0.00014993,2]
[337259096,1725553833299,-500.0,0.00014993,2]
[337259097,1725553833308,-768.69,0.00014993,2]
[337259098,1725553833318,-2196.92,0.00014993,2]
[337259099,1725553833327,-500.0,0.00014993,2]
[337259100,1725553833337,-500.0,0.00014993,2]
[337259101,1725553833346,-500.0,0.00014993,2]
[337259102,1725553833355,-1916.26610347,0.00014994,2]
[337259103,1725553833364,-500.0,0.00014994,2]
[337259104,1725553833373,-500.0,0.00014994,2]
[337259105,1725553833382,-500.0,0.00014994,2]
[337259106,1725553833391,-500.0,0.00014994,2]
[337259107,1725553833400,-500.0,0.00014994,2]
[337259108,1725553833410,-500.0,0.00014994,2]
[337259109,1725553833419,-500.0,0.00014994,2]
[337259110,1725553833428,-500.0,0.00014994,2]
[337259111,1725553833438,-500.0,0.00014994,2]
[337259112,1725553833447,-500.0,0.00014994,2]
[337259113,1725553833457,-500.0,0.00014994,2]
[337259114,1725553833466,-500.0,0.00014994,2]
[337259115,1725553833475,-500.0,0.00014994,2]
[337259116,1725553833484,-782.73,0.00014994,2]
[337259117,1725553833493,-500.0,0.00014994,2]
[337259118,1725553833503,-1027.36,0.00014994,2]
[337259119,1725553833512,-500.0,0.00014994,2]
[337259121,1725553833521,-500.0,0.00014994,2]
[337259122,1725553833531,-2541.21,0.00014994,2]
[337259123,1725553833540,-6022.62,0.00014994,2]
[337259124,1725553833549,-1855.37,0.00014994,2]
[337259125,1725553833559,-6022.62,0.00014994,2]
[337259126,1725553833568,-2989.74,0.00014994,2]
[337259127,1725553833578,-2989.74,0.00014994,2]
[337259128,1725553833587,-20044.75,0.00014994,2]
[337259129,1725553833597,-500.0,0.00014994,2]
[337259130,1725553833606,-500.0,0.00014994,2]
[337259131,1725553833616,-500.0,0.00014994,2]
[337259132,1725553833625,-500.0,0.00014994,2]
[337259133,1725553833635,-500.0,0.00014994,2]
[337259134,1725553833644,-500.0,0.00014994,2]
[337259135,1725553833654,-500.0,0.00014994,2]
[337259136,1725553833663,-500.0,0.00014994,2]
[337259137,1725553833672,-500.0,0.00014994,2]
[337259138,1725553833682,-7698.81,0.00014994,2]
[337259139,1725553833691,-500.0,0.00014994,2]
[337259140,1725553833701,-617.38,0.00014994,2]
[337259141,1725553833711,-1823.63,0.00014994,2]
[337259142,1725553833721,-1823.63,0.00014994,2]
[337259143,1725553833743,-500.0,0.00014994,2]
[337259144,1725553833753,-500.0,0.00014994,2]
[337259145,1725553833763,-719.32,0.00014994,2]
[337259146,1725553833772,-500.0,0.00014994,2]
[337259147,1725553833784,-500.0,0.00014994,2]
[337259148,1725553833794,-716.41,0.00014994,2]
[337259149,1725553833804,-716.41,0.00014994,2]
[337259150,1725553833813,-502.86,0.00014994,2]
[337259151,1725553833823,-500.0,0.00014994,2]
[337259152,1725553833832,-3419.25,0.00014994,2]
[337259153,1725553833842,-1222.83,0.00014994,2]
[337259154,1725553833852,-1222.83,0.00014994,2]
[337259155,1725553833861,-500.0,0.00014994,2]
[337259156,1725553833871,-500.0,0.00014994,2]
[337259157,1725553833881,-753.56,0.00014994,2]
[337259158,1725553833891,-753.56,0.00014994,2]
[337259159,1725553833901,-758.24,0.00014994,2]
[337259160,1725553833911,-758.24,0.00014994,2]
[337259161,1725553833921,-500.0,0.00014994,2]
[337259162,1725553833930,-500.0,0.00014994,2]
[337259163,1725553833940,-500.0,0.00014994,2]
[337259164,1725553833949,-1242.9,0.00014994,2]
[337259165,1725553833959,-1242.9,0.00014994,2]
[337259166,1725553833969,-894.79,0.00014994,2]
[337259167,1725553833979,-500.0,0.00014994,2]
[337259168,1725553833988,-894.79,0.00014994,2]
[337259169,1725553833998,-500.0,0.00014994,2]
[337259170,1725553834008,-675.99,0.00014994,2]
[337259171,1725553834017,-675.99,0.00014994,2]
[337259172,1725553834026,-809.14,0.00014994,2]
[337259173,1725553834037,-809.14,0.00014994,2]
[337259174,1725553834047,-500.0,0.00014994,2]
[337259175,1725553834056,-996.15,0.00014994,2]
[337259176,1725553834065,-500.0,0.00014994,2]
[337259177,1725553834074,-500.0,0.00014994,2]
[337259178,1725553834083,-500.0,0.00014994,2]
[337259179,1725553834092,-500.0,0.00014994,2]
[337259180,1725553834103,-1302.97,0.00014994,2]
[337259181,1725553834114,-1302.97,0.00014994,2]
[337259182,1725553834123,-1012.74,0.00014994,2]
[337259183,1725553834133,-500.0,0.00014994,2]
[337259184,1725553834142,-500.0,0.00014994,2]
[337259185,1725553834154,-762.3,0.00014994,2]
[337259186,1725553834166,-762.3,0.00014994,2]
[337259187,1725553834176,-3028.98,0.00014994,2]
[337259188,1725553834186,-3028.98,0.00014994,2]
[337259189,1725553834195,-204.21,0.00014994,2]
[337259190,1725553834205,-1212.57,0.00014994,2]
[337259191,1725553834215,-1212.57,0.00014994,2]
[337259192,1725553834224,-616.46,0.00014994,2]
[337259193,1725553834236,-570.54,0.00014994,2]
[337259194,1725553834245,-616.46,0.00014994,2]
[337259195,1725553834254,-555.8,0.00014994,2]
[337259196,1725553834264,-555.8,0.00014994,2]
[337259197,1725553834273,-5934.26,0.00014994,2]
[337259198,1725553834283,-3208.0,0.00014994,2]
[337259199,1725553834292,-5934.26,0.00014994,2]
[337259200,1725553834302,-3208.0,0.00014994,2]
[337259201,1725553834312,-2326.79,0.00014994,2]
[337259202,1725553834322,-2326.79,0.00014994,2]
[337259203,1725553834331,-500.0,0.00014994,2]
[337259204,1725553834341,-946.39,0.00014994,2]
[337259205,1725553834350,-946.39,0.00014994,2]
[337259206,1725553834359,-500.0,0.00014994,2]
[337259207,1725553834369,-500.0,0.00014994,2]
[337259208,1725553834378,-500.0,0.00014994,2]
[337259209,1725553834388,-1555.28,0.00014994,2]
[337259210,1725553834397,-1555.28,0.00014994,2]
[337259211,1725553834407,-500.0,0.00014994,2]
[337259212,1725553834417,-194.45573107,0.00014994,2]
[337259213,1725553834427,-500.0,0.00014994,2]
[337259214,1725553834436,-1363.45,0.00014994,2]
[337259215,1725553834445,-500.0,0.00014994,2]
[337259216,1725553834455,-1363.45,0.00014994,2]
[337259217,1725553834466,-3105.09,0.00014994,2]
[337259218,1725553834476,-3105.09,0.00014994,2]
[337259219,1725553834486,-714.49,0.00014994,2]
[337259220,1725553834496,-272.95,0.00014994,2]
[337259221,1725553834506,-661.36,0.00014994,2]
[337259222,1725553834516,-661.36,0.00014994,2]
[337259223,1725553834526,-11695.67,0.00014994,2]
[337259224,1725553834536,-11695.67,0.00014994,2]
[337259225,1725553834546,-500.0,0.00014994,2]
[337259226,1725553834556,-500.0,0.00014994,2]
[337259227,1725553834566,-2087.83,0.00014994,2]
[337259228,1725553834575,-2087.83,0.00014994,2]
[337259229,1725553834585,-200.0,0.00014994,2]
[337259230,1725553834594,-500.0,0.00014994,2]
[337259231,1725553834603,-500.0,0.00014994,2]
[337259232,1725553834613,-500.0,0.00014994,2]
[337259233,1725553834622,-5887.95,0.00014994,2]
[337259234,1725553834631,-990.84,0.00014994,2]
[337259235,1725553834641,-5887.95,0.00014994,2]
[337259236,1725553834650,-990.84,0.00014994,2]
[337259237,1725553834660,-500.0,0.00014994,2]
[337259238,1725553834669,-500.0,0.00014994,2]
[337259239,1725553834679,-300.78668973,0.00014994,2]
[337259240,1725553834688,-3101.94,0.00014994,2]
[337259241,1725553834697,-3101.94,0.00014994,2]
[337259242,1725553834706,-500.0,0.00014994,2]
[337259243,1725553834715,-500.0,0.00014994,2]
[337259244,1725553834724,-500.0,0.00014994,2]
[337259245,1725553834734,-2813.01,0.00014994,2]
[337259246,1725553834744,-2813.01,0.00014994,2]
[337259247,1725553834753,-2719.95,0.00014994,2]
[337259248,1725553834762,-2719.95,0.00014994,2]
[337259249,1725553834772,-555.1951047,0.00014994,2]
[337259250,1725553834781,-500.0,0.00014994,2]
[337259251,1725553834790,-500.0,0.00014994,2]
[337259252,1725553834799,-13510.44,0.00014994,2]
[337259253,1725553834809,-13510.44,0.00014994,2]
[337259254,1725553834818,-3508.06,0.00014994,2]
[337259255,1725553834827,-3508.06,0.00014994,2]
[337259256,1725553834837,-500.0,0.00014994,2]
[337259257,1725553834847,-500.0,0.00014994,2]
[337259258,1725553834858,-2659.26,0.00014994,2]
[337259259,1725553834869,-500.0,0.00014995,2]
[337259260,1725553834880,-565.39,0.00014995,2]
[337259261,1725553834890,-2481.14,0.00014995,2]
[337259262,1725553834901,-500.0,0.00014995,2]
[337259263,1725553834910,-2083.49,0.00014995,2]
[337259264,1725553835091,-1582.58,0.00014995,2]
[337259265,1725553835103,-500.0,0.00014995,2]
[337259266,1725553835114,-500.0,0.00014995,2]
[337259267,1725553835124,-500.0,0.00014995,2]
[337259268,1725553835135,-500.0,0.00014995,2]
[337259269,1725553835147,-500.0,0.00014995,2]
[337259270,1725553835158,-1739.6,0.00014995,2]
[337259271,1725553835169,-1261.67282158,0.00014995,2]
[337259272,1725553835185,-481.30717842,0.00014995,2]
[337259273,1725553835196,-500.0,0.00014995,2]
[337259274,1725553835206,-566.01,0.00014995,2]
[337259275,1725553835218,-1366.69922158,0.00014995,2]
[337259276,1725553835236,-3964.15,0.00013947,2]
[337259277,1725553835245,-958.58077842,0.00014995,2]
[337259278,1725553835254,-1090.74,0.00014995,2]
[337259279,1725553835263,-500.0,0.00014995,2]
[337259280,1725553835272,-500.0,0.00014995,2]
[337259281,1725553835281,-500.0,0.00014995,2]
[337259282,1725553835290,-500.0,0.00014995,2]
[337259283,1725553835299,-500.0,0.00014995,2]
[337259284,1725553835309,-500.0,0.00014995,2]
[337259285,1725553835318,-500.0,0.00014995,2]
[337259286,1725553835327,-500.0,0.00014995,2]
[337259287,1725553835336,-500.0,0.00014995,2]
[337259288,1725553835345,-500.0,0.00014995,2]
[337259289,1725553835354,-500.0,0.00014995,2]
[337259290,1725553835363,-500.0,0.00014995,2]
[337259291,1725553835372,-500.0,0.00014995,2]
[337259292,1725553835382,-814.38,0.00014995,2]
[337259293,1725553835390,-500.0,0.00014995,2]
[337259294,1725553835399,-1314.03,0.00014995,2]
[337259295,1725553835408,-1314.03,0.00014995,2]
[337259296,1725553835417,-1314.03,0.00014995,2]
[337259297,1725553835426,-1314.03,0.00014995,2]
[337259298,1725553835435,-500.0,0.00014995,2]
[337259299,1725553835445,-500.0,0.00014995,2]
[337259300,1725553835454,-500.0,0.00014995,2]
[337259301,1725553835463,-460.66304453,0.00014995,2]
[337259302,1725553835475,-500.0,0.00014995,2]
[337259303,1725553835485,-500.0,0.00014995,2]
[337259304,1725553835495,-651.92,0.00014995,2]
[337259305,1725553835505,-651.92,0.00014995,2]
[337259306,1725553835514,-651.92,0.00014995,2]
[337259307,1725553835525,-651.92,0.00014995,2]
[337259308,1725553835535,-500.0,0.00014995,2]
[337259309,1725553835544,-488.50092594,0.00014995,2]
[337259310,1725553835553,-727.97,0.00014995,2]
[337259311,1725553835563,-727.97,0.00014995,2]
[337259312,1725553835572,-727.97,0.00014995,2]
[337259313,1725553835581,-727.97,0.00014995,2]
[337259314,1725553835591,-500.0,0.00014995,2]
[337259315,1725553835600,-500.0,0.00014995,2]
[337259316,1725553835609,-500.0,0.00014995,2]
[337259317,1725553835618,-500.0,0.00014995,2]
[337259318,1725553835628,-500.0,0.00014995,2]
[337259319,1725553835637,-299.47230117,0.00014995,2]
[337259320,1725553835646,-2127.22,0.00014995,2]
[337259321,1725553835655,-2127.22,0.00014995,2]
[337259322,1725553835665,-2970.51,0.00014995,2]
[337259323,1725553835674,-2970.51,0.00014995,2]
[337259324,1725553835683,-605.01,0.00014995,2]
[337259325,1725553835693,-605.01,0.00014995,2]
[337259326,1725553835702,-605.01,0.00014995,2]
[337259327,1725553835711,-500.4,0.00014995,2]
[337259328,1725553835722,-605.01,0.00014995,2]
[337259329,1725553835732,-500.0,0.00014995,2]
[337259330,1725553835741,-672.18,0.00014995,2]
[337259331,1725553835751,-672.18,0.00014995,2]
[337259332,1725553835762,-542.71,0.00014995,2]
[337259333,1725553835773,-542.71,0.00014995,2]
[337259334,1725553835783,-542.71,0.00014995,2]
[337259335,1725553835793,-542.71,0.00014995,2]
[337259336,1725553835804,-514.26,0.00014995,2]
[337259337,1725553835814,-514.26,0.00014995,2]
[337259338,1725553835826,-963.14,0.00014995,2]
[337259339,1725553835836,-963.14,0.00014995,2]
[337259340,1725553835845,-524.89,0.00014995,2]
[337259341,1725553835855,-524.89,0.00014995,2]
[337259342,1725553835866,-524.89,0.00014995,2]
[337259343,1725553835875,-524.89,0.00014995,2]
[337259344,1725553835886,-500.0,0.00014995,2]
[337259345,1725553835896,-500.0,0.00014995,2]
[337259346,1725553835906,-2841.65,0.00014995,2]
[337259347,1725553835915,-2841.65,0.00014995,2]
[337259348,1725553835926,-500.0,0.00014995,2]
[337259349,1725553835935,-460.62577895,0.00014995,2]
[337259350,1725553835946,-500.0,0.00014995,2]
[337259351,1725553835956,-482.78983245,0.00014995,2]
[337259352,1725553835965,-500.0,0.00014995,2]
[337259353,1725553835976,-500.0,0.00014995,2]
[337259354,1725553835987,-500.0,0.00014995,2]
[337259355,1725553835997,-1697.44,0.00014995,2]
[337259356,1725553836007,-1697.44,0.00014995,2]
[337259357,1725553836016,-236.57604776,0.00014995,2]
[337259358,1725553836027,-500.0,0.00014995,2]
[337259359,1725553836038,-500.0,0.00014995,2]
[337259360,1725553836047,-500.0,0.00014995,2]
[337259361,1725553836056,-522.82,0.00014995,2]
[337259362,1725553836064,-522.82,0.00014995,2]
[337259363,1725553836074,-522.82,0.00014995,2]
[337259364,1725553836085,-500.0,0.00014995,2]
[337259365,1725553836094,-522.82,0.00014995,2]
[337259366,1725553836103,-517.72120487,0.00014995,2]
[337259367,1725553836114,-500.0,0.00014995,2]
[337259368,1725553836123,-500.0,0.00014995,2]
[337259369,1725553836132,-500.0,0.00014995,2]
[337259370,1725553836142,-320.96874212,0.00014995,2]
[337259371,1725553836155,-500.0,0.00014995,2]
[337259372,1725553836165,-500.0,0.00014995,2]
[337259373,1725553836175,-608.42,0.00014995,2]
[337259374,1725553836184,-608.42,0.00014995,2]
[337259375,1725553836195,-1710.59,0.00014995,2]
[337259376,1725553836204,-1710.59,0.00014995,2]
[337259377,1725553836213,-500.0,0.00014995,2]
[337259378,1725553836222,-500.0,0.00014995,2]
[337259379,1725553836232,-500.0,0.00014995,2]
[337259380,1725553836241,-500.0,0.00014995,2]
[337259381,1725553836250,-559.36,0.00014995,2]
[337259382,1725553836259,-559.36,0.00014995,2]
[337259383,1725553836269,-500.0,0.00014995,2]
[337259384,1725553836278,-266.42032643,0.00014995,2]
[337259385,1725553836288,-500.0,0.00014995,2]
[337259386,1725553836297,-500.0,0.00014995,2]
[337259387,1725553836307,-1176.7078,0.00014995,2]
[337259388,1725553836316,-500.0,0.00014995,2]
[337259389,1725553836325,-500.0,0.00014995,2]
[337259390,1725553836334,-500.0,0.00014995,2]
[337259391,1725553836343,-542.1,0.00014995,2]
[337259392,1725553836352,-542.1,0.00014995,2]
[337259393,1725553836362,-500.0,0.00014995,2]
[337259394,1725553836371,-518.46,0.00014995,2]
[337259395,1725553836380,-2484.57,0.00014995,2]
[337259396,1725553836389,-2484.57,0.00014995,2]
[337259397,1725553836398,-500.0,0.00014995,2]
[337259398,1725553836407,-500.0,0.00014995,2]
[337259399,1725553836416,-500.0,0.00014995,2]
[337259400,1725553836425,-500.0,0.00014995,2]